[Event "Titled Tuesday Blitz November 07 Early 2023"]
[White "Talibov, Shiroghlan"]
[Black "Bluebaum, Matthias"]
[WhiteFideId "13429078"]
[BlackFideId "24651516"]
[WhiteElo "2897"]
[BlackElo "3073"]
[Result "1/2-1/2"]
[Round "5"]
[TimeControl "180+1"]
[Date "2023.11.07"]
[WhiteClock "0:00:04"]
[BlackClock "0:00:22"]
[Board "5"]

1. d4 {[%clk 0:02:27]}  d5 {[%clk 0:02:58]} 2. c4 {[%clk 0:02:27]}  e6 {[%clk 0:02:59]} 3. Nf3 {[%clk 0:02:26]}  Nf6 {[%clk 0:02:59]} 4. Nc3 {[%clk 0:02:26]}  Bb4 {[%clk 0:02:59]} 5. Qa4+ {[%clk 0:02:26]}  Nc6 {[%clk 0:02:59]} 6. e3 {[%clk 0:02:27]}  O-O {[%clk 0:03:00]} 7. Bd2 {[%clk 0:02:28]}  Qe8 {[%clk 0:03:01]} 8. Qc2 {[%clk 0:02:23]}  dxc4 {[%clk 0:03:01]} 9. Bxc4 {[%clk 0:02:21]}  e5 {[%clk 0:03:01]} 10. dxe5 {[%clk 0:01:47]}  Nxe5 {[%clk 0:03:02]} 11. Be2 {[%clk 0:01:46]}  Bg4 {[%clk 0:02:57]} 12. Nxe5 {[%clk 0:01:36]}  Qxe5 {[%clk 0:02:58]} 13. Bxg4 {[%clk 0:01:36]}  Nxg4 {[%clk 0:02:59]} 14. h3 {[%clk 0:01:36]}  Nf6 {[%clk 0:02:58]} 15. O-O {[%clk 0:01:36]}  Rad8 {[%clk 0:02:59]} 16. Rad1 {[%clk 0:01:32]}  Rd7 {[%clk 0:02:43]} 17. Ne2 {[%clk 0:01:25]}  Bd6 {[%clk 0:02:42]} 18. Nf4 {[%clk 0:01:13]}  Ne4 {[%clk 0:02:39]} 19. g3 {[%clk 0:00:59]}  Rfd8 {[%clk 0:02:37]} 20. Bc1 {[%clk 0:00:54]}  c6 {[%clk 0:02:30]} 21. Rd3 {[%clk 0:00:53]}  g5 {[%clk 0:02:09]} 22. Ne2 {[%clk 0:00:48]}  Qf5 {[%clk 0:02:09]} 23. Kg2 {[%clk 0:00:39]}  Be5 {[%clk 0:02:02]} 24. Rxd7 {[%clk 0:00:36]}  Rxd7 {[%clk 0:02:03]} 25. g4 {[%clk 0:00:29]}  Qg6 {[%clk 0:02:03]} 26. f3 {[%clk 0:00:29]}  Nf6 {[%clk 0:01:54]} 27. Qxg6+ {[%clk 0:00:29]}  hxg6 {[%clk 0:01:55]} 28. e4 {[%clk 0:00:29]}  Ne8 {[%clk 0:01:51]} 29. Bxg5 {[%clk 0:00:29]}  Bxb2 {[%clk 0:01:51]} 30. Rb1 {[%clk 0:00:28]}  Bf6 {[%clk 0:01:52]} 31. Be3 {[%clk 0:00:28]}  b6 {[%clk 0:01:51]} 32. f4 {[%clk 0:00:29]}  Nd6 {[%clk 0:01:48]} 33. Rd1 {[%clk 0:00:24]}  Rd8 {[%clk 0:01:48]} 34. e5 {[%clk 0:00:20]}  Nc4 {[%clk 0:01:49]} 35. Rxd8+ {[%clk 0:00:19]}  Bxd8 {[%clk 0:01:50]} 36. Bc1 {[%clk 0:00:19]}  g5 {[%clk 0:01:44]} 37. Kf3 {[%clk 0:00:18]}  gxf4 {[%clk 0:01:45]} 38. Bxf4 {[%clk 0:00:18]}  a5 {[%clk 0:01:35]} 39. Nd4 {[%clk 0:00:18]}  c5 {[%clk 0:01:35]} 40. Nc6 {[%clk 0:00:17]}  Bh4 {[%clk 0:01:35]} 41. Ke4 {[%clk 0:00:16]}  Na3 {[%clk 0:01:28]} 42. Na7 {[%clk 0:00:13]}  Nc2 {[%clk 0:01:28]} 43. Nc8 {[%clk 0:00:12]}  b5 {[%clk 0:01:29]} 44. Nd6 {[%clk 0:00:12]}  b4 {[%clk 0:01:27]} 45. Kd5 {[%clk 0:00:13]}  a4 {[%clk 0:01:27]} 46. Nc4 {[%clk 0:00:12]}  Bf2 {[%clk 0:01:22]} 47. g5 {[%clk 0:00:12]}  Bd4 {[%clk 0:01:20]} 48. g6 {[%clk 0:00:10]}  fxg6 {[%clk 0:01:13]} 49. e6 {[%clk 0:00:11]}  Bf6 {[%clk 0:01:14]} 50. Kxc5 {[%clk 0:00:09]}  b3 {[%clk 0:01:14]} 51. axb3 {[%clk 0:00:10]}  axb3 {[%clk 0:01:15]} 52. Kd6 {[%clk 0:00:09]}  Nd4 {[%clk 0:01:06]} 53. Kd7 {[%clk 0:00:07]}  Nf5 {[%clk 0:01:06]} 54. Bc1 {[%clk 0:00:07]}  Kh7 {[%clk 0:01:04]} 55. Nd6 {[%clk 0:00:05]}  Bh4 {[%clk 0:00:21]} 56. Ne4 {[%clk 0:00:02]}  Be7 {[%clk 0:00:21]} 57. Bb2 {[%clk 0:00:03]}  Bb4 {[%clk 0:00:19]} 58. Nf6+ {[%clk 0:00:03]}  Kh6 {[%clk 0:00:19]} 59. Nd5 {[%clk 0:00:04]}  Bc5 {[%clk 0:00:14]} 60. e7 {[%clk 0:00:03]}  Nxe7 {[%clk 0:00:14]} 61. Nxe7 {[%clk 0:00:04]}  g5 {[%clk 0:00:15]} 62. Nd5 {[%clk 0:00:04]}  Kh5 {[%clk 0:00:14]} 63. Ke6 {[%clk 0:00:03]}  Kh4 {[%clk 0:00:15]} 64. Kf5 {[%clk 0:00:03]}  Bf8 {[%clk 0:00:07]} 65. Bc1 {[%clk 0:00:03]}  Bh6 {[%clk 0:00:07]} 66. Ke4 {[%clk 0:00:03]}  g4 {[%clk 0:00:04]} 67. Bxh6 {[%clk 0:00:03]}  b2 {[%clk 0:00:05]} 68. Nc3 {[%clk 0:00:02]}  gxh3 {[%clk 0:00:05]} 69. Bf4 {[%clk 0:00:03]}  Kg4 {[%clk 0:00:05]} 70. Ke3 {[%clk 0:00:03]}  Kh4 {[%clk 0:00:06]} 71. Kf3 {[%clk 0:00:03]}  Kh5 {[%clk 0:00:06]} 72. Kg3 {[%clk 0:00:04]}  h2 {[%clk 0:00:07]} 73. Kxh2 {[%clk 0:00:04]}  Kg4 {[%clk 0:00:07]} 74. Bh6 {[%clk 0:00:03]}  Kf3 {[%clk 0:00:08]} 75. Kg1 {[%clk 0:00:03]}  Kg3 {[%clk 0:00:08]} 76. Kf1 {[%clk 0:00:03]}  Kf3 {[%clk 0:00:09]} 77. Ke1 {[%clk 0:00:03]}  Kg4 {[%clk 0:00:10]} 78. Kd2 {[%clk 0:00:04]}  b1=Q {[%clk 0:00:10]} 79. Nxb1 {[%clk 0:00:03]}  Kh5 {[%clk 0:00:11]} 80. Be3 {[%clk 0:00:04]}  Kg6 {[%clk 0:00:12]} 81. Kd3 {[%clk 0:00:05]}  Kf5 {[%clk 0:00:13]} 82. Kd4 {[%clk 0:00:05]}  Kg4 {[%clk 0:00:13]} 83. Ke4 {[%clk 0:00:05]}  Kh5 {[%clk 0:00:14]} 84. Kf4 {[%clk 0:00:03]}  Kg6 {[%clk 0:00:14]} 85. Ke5 {[%clk 0:00:03]}  Kh5 {[%clk 0:00:15]} 86. Nc3 {[%clk 0:00:04]}  Kh4 {[%clk 0:00:16]} 87. Ne4 {[%clk 0:00:04]}  Kh3 {[%clk 0:00:16]} 88. Kf4 {[%clk 0:00:04]}  Kg2 {[%clk 0:00:17]} 89. Kg4 {[%clk 0:00:05]}  Kf1 {[%clk 0:00:18]} 90. Kf3 {[%clk 0:00:05]}  Ke1 {[%clk 0:00:18]} 91. Ng3 {[%clk 0:00:04]}  Kd1 {[%clk 0:00:19]} 92. Ke4 {[%clk 0:00:05]}  Ke1 {[%clk 0:00:20]} 93. Kd3 {[%clk 0:00:05]}  Kd1 {[%clk 0:00:20]} 94. Bf4 {[%clk 0:00:05]}  Ke1 {[%clk 0:00:21]} 95. Be3 {[%clk 0:00:06]}  Kd1 {[%clk 0:00:22]} 96. Ne4 {[%clk 0:00:05]}  Ke1 {[%clk 0:00:22]} 97. Ng3 {[%clk 0:00:04]} 1/2-1/2


[Site "https://www.chess.com"]

[Event "Titled Tuesday Blitz November 07 Early 2023"]
[White "Pranav, V"]
[Black "Steinberg, Nitzan"]
[WhiteFideId "25060783"]
[BlackFideId "2801795"]
[WhiteElo "3063"]
[BlackElo "2894"]
[Result "1-0"]
[Round "5"]
[TimeControl "180+1"]
[Date "2023.11.07"]
[WhiteClock "0:00:13"]
[BlackClock "0:00:02"]
[Board "6"]

1. e4 {[%clk 0:03:00]}  c5 {[%clk 0:03:00]} 2. Nf3 {[%clk 0:03:01]}  e6 {[%clk 0:03:00]} 3. d4 {[%clk 0:03:00]}  cxd4 {[%clk 0:03:00]} 4. Nxd4 {[%clk 0:03:01]}  Nc6 {[%clk 0:03:00]} 5. Nc3 {[%clk 0:03:01]}  Qc7 {[%clk 0:03:00]} 6. Be3 {[%clk 0:03:00]}  a6 {[%clk 0:02:59]} 7. Qf3 {[%clk 0:03:00]}  Nf6 {[%clk 0:02:53]} 8. O-O-O {[%clk 0:02:57]}  Be7 {[%clk 0:02:44]} 9. Nxc6 {[%clk 0:02:37]}  bxc6 {[%clk 0:02:33]} 10. g4 {[%clk 0:02:37]}  d5 {[%clk 0:02:32]} 11. g5 {[%clk 0:02:37]}  Nd7 {[%clk 0:02:30]} 12. h4 {[%clk 0:02:36]}  O-O {[%clk 0:02:06]} 13. h5 {[%clk 0:02:29]}  Rb8 {[%clk 0:01:52]} 14. exd5 {[%clk 0:01:59]}  cxd5 {[%clk 0:01:49]} 15. Bf4 {[%clk 0:01:59]}  Bd6 {[%clk 0:01:48]} 16. Bxd6 {[%clk 0:01:58]}  Qxd6 {[%clk 0:01:48]} 17. Rh4 {[%clk 0:01:53]}  Bb7 {[%clk 0:01:24]} 18. h6 {[%clk 0:01:37]}  g6 {[%clk 0:01:14]} 19. Qd3 {[%clk 0:01:28]}  Nc5 {[%clk 0:01:06]} 20. Qe3 {[%clk 0:01:23]}  e5 {[%clk 0:00:58]} 21. f4 {[%clk 0:01:22]}  Rfe8 {[%clk 0:00:40]} 22. fxe5 {[%clk 0:01:13]}  Qxe5 {[%clk 0:00:41]} 23. Qxe5 {[%clk 0:01:01]}  Rxe5 {[%clk 0:00:42]} 24. Rb4 {[%clk 0:01:01]}  Rd8 {[%clk 0:00:23]} 25. Rb6 {[%clk 0:01:00]}  Re6 {[%clk 0:00:16]} 26. Nxd5 {[%clk 0:00:42]}  Kf8 {[%clk 0:00:06]} 27. Rxb7 {[%clk 0:00:27]}  Nxb7 {[%clk 0:00:06]} 28. Nf6 {[%clk 0:00:28]}  Rxd1+ {[%clk 0:00:06]} 29. Kxd1 {[%clk 0:00:29]}  Rxf6 {[%clk 0:00:04]} 30. gxf6 {[%clk 0:00:30]}  Nd6 {[%clk 0:00:04]} 31. Bxa6 {[%clk 0:00:29]}  Ne4 {[%clk 0:00:04]} 32. a4 {[%clk 0:00:29]}  Nxf6 {[%clk 0:00:04]} 33. a5 {[%clk 0:00:30]}  Ke7 {[%clk 0:00:05]} 34. Bb7 {[%clk 0:00:29]}  Kd6 {[%clk 0:00:05]} 35. b4 {[%clk 0:00:29]}  Ng4 {[%clk 0:00:03]} 36. Kd2 {[%clk 0:00:27]}  Ne5 {[%clk 0:00:03]} 37. Ke3 {[%clk 0:00:19]}  f5 {[%clk 0:00:04]} 38. Kd4 {[%clk 0:00:19]}  f4 {[%clk 0:00:04]} 39. c4 {[%clk 0:00:20]}  g5 {[%clk 0:00:03]} 40. c5+ {[%clk 0:00:20]}  Ke6 {[%clk 0:00:04]} 41. a6 {[%clk 0:00:20]}  f3 {[%clk 0:00:04]} 42. b5 {[%clk 0:00:16]}  f2 {[%clk 0:00:03]} 43. Bg2 {[%clk 0:00:16]}  Nf3+ {[%clk 0:00:02]} 44. Ke3 {[%clk 0:00:16]}  Ne1 {[%clk 0:00:03]} 45. Bh3+ {[%clk 0:00:13]}  g4 {[%clk 0:00:03]} 46. Bxg4+ {[%clk 0:00:13]}  Kd5 {[%clk 0:00:03]} 47. Be2 {[%clk 0:00:13]}  Kxc5 {[%clk 0:00:02]} 48. a7 {[%clk 0:00:13]} 1-0


[Site "https://www.chess.com"]

[Event "Titled Tuesday Blitz November 07 Early 2023"]
[White "Martinez Alcantara, Jose Eduardo"]
[Black "Kazakouski, Valery"]
[WhiteFideId "3805662"]
[BlackFideId "13507443"]
[WhiteElo "3051"]
[BlackElo "2887"]
[Result "1-0"]
[Round "5"]
[TimeControl "180+1"]
[Date "2023.11.07"]
[WhiteClock "0:00:26"]
[BlackClock "0:00:01"]
[Board "7"]

1. e4 {[%clk 0:03:00]}  c5 {[%clk 0:03:00]} 2. Nf3 {[%clk 0:03:01]}  a6 {[%clk 0:03:00]} 3. c3 {[%clk 0:03:01]}  d5 {[%clk 0:03:00]} 4. exd5 {[%clk 0:03:00]}  Qxd5 {[%clk 0:03:01]} 5. d4 {[%clk 0:03:01]}  Bg4 {[%clk 0:03:02]} 6. Be2 {[%clk 0:03:00]}  Nf6 {[%clk 0:03:02]} 7. Be3 {[%clk 0:02:58]}  cxd4 {[%clk 0:03:02]} 8. cxd4 {[%clk 0:02:59]}  e6 {[%clk 0:03:02]} 9. Nc3 {[%clk 0:02:59]}  Qd6 {[%clk 0:03:03]} 10. Qb3 {[%clk 0:02:58]}  Qb4 {[%clk 0:03:03]} 11. h3 {[%clk 0:02:56]}  Bh5 {[%clk 0:03:01]} 12. g4 {[%clk 0:02:55]}  Bg6 {[%clk 0:03:01]} 13. Ne5 {[%clk 0:02:56]}  Be4 {[%clk 0:03:02]} 14. O-O {[%clk 0:02:51]}  Bd5 {[%clk 0:02:01]} 15. Qxb4 {[%clk 0:02:30]}  Bxb4 {[%clk 0:02:02]} 16. g5 {[%clk 0:02:31]}  Ne4 {[%clk 0:02:01]} 17. Nxd5 {[%clk 0:02:21]}  exd5 {[%clk 0:02:02]} 18. Rac1 {[%clk 0:02:15]}  O-O {[%clk 0:02:02]} 19. Rc7 {[%clk 0:02:10]}  b5 {[%clk 0:01:42]} 20. Rfc1 {[%clk 0:02:08]}  Ba5 {[%clk 0:00:40]} 21. R7c2 {[%clk 0:01:58]}  Bd8 {[%clk 0:00:34]} 22. h4 {[%clk 0:01:29]}  f6 {[%clk 0:00:34]} 23. gxf6 {[%clk 0:01:30]}  Bxf6 {[%clk 0:00:35]} 24. Bg4 {[%clk 0:01:29]}  Ra7 {[%clk 0:00:18]} 25. Be6+ {[%clk 0:01:26]}  Kh8 {[%clk 0:00:18]} 26. Bxd5 {[%clk 0:01:27]}  Nd6 {[%clk 0:00:18]} 27. h5 {[%clk 0:01:11]}  Nd7 {[%clk 0:00:16]} 28. Nxd7 {[%clk 0:01:05]}  Rxd7 {[%clk 0:00:16]} 29. Be6 {[%clk 0:01:06]}  Rdd8 {[%clk 0:00:14]} 30. b3 {[%clk 0:00:50]}  Ne4 {[%clk 0:00:14]} 31. d5 {[%clk 0:00:50]}  Ng5 {[%clk 0:00:14]} 32. Kg2 {[%clk 0:00:45]}  Rfe8 {[%clk 0:00:13]} 33. Rc6 {[%clk 0:00:44]}  a5 {[%clk 0:00:13]} 34. R1c2 {[%clk 0:00:43]}  a4 {[%clk 0:00:13]} 35. bxa4 {[%clk 0:00:44]}  bxa4 {[%clk 0:00:14]} 36. Ra6 {[%clk 0:00:44]}  h6 {[%clk 0:00:12]} 37. Bxg5 {[%clk 0:00:42]}  Bxg5 {[%clk 0:00:12]} 38. Rxa4 {[%clk 0:00:43]}  Rf8 {[%clk 0:00:09]} 39. Re4 {[%clk 0:00:41]}  Be7 {[%clk 0:00:08]} 40. a4 {[%clk 0:00:42]}  Ra8 {[%clk 0:00:08]} 41. Rc7 {[%clk 0:00:40]}  Bd6 {[%clk 0:00:06]} 42. Rd7 {[%clk 0:00:41]}  Bf4 {[%clk 0:00:06]} 43. Bg4 {[%clk 0:00:33]}  Ra6 {[%clk 0:00:06]} 44. Be2 {[%clk 0:00:30]}  Ra5 {[%clk 0:00:05]} 45. Bd3 {[%clk 0:00:25]}  Bg5 {[%clk 0:00:05]} 46. f4 {[%clk 0:00:22]}  Bf6 {[%clk 0:00:04]} 47. Bb5 {[%clk 0:00:23]}  Raa8 {[%clk 0:00:04]} 48. d6 {[%clk 0:00:23]}  Rab8 {[%clk 0:00:03]} 49. Rc7 {[%clk 0:00:22]}  Rbd8 {[%clk 0:00:02]} 50. d7 {[%clk 0:00:23]}  Kg8 {[%clk 0:00:03]} 51. Bc4+ {[%clk 0:00:23]}  Kh7 {[%clk 0:00:03]} 52. Bb5 {[%clk 0:00:24]}  Kg8 {[%clk 0:00:04]} 53. a5 {[%clk 0:00:24]}  g6 {[%clk 0:00:03]} 54. hxg6 {[%clk 0:00:24]}  Kg7 {[%clk 0:00:04]} 55. a6 {[%clk 0:00:24]}  Kxg6 {[%clk 0:00:04]} 56. a7 {[%clk 0:00:25]}  Kf5 {[%clk 0:00:01]} 57. Kf3 {[%clk 0:00:26]} 1-0


[Site "https://www.chess.com"]

[Event "Titled Tuesday Blitz November 07 Early 2023"]
[White "Taher, Yoseph Theolifus"]
[Black "Pranesh M"]
[WhiteFideId "7105347"]
[BlackFideId "35028600"]
[WhiteElo "2883"]
[BlackElo "3036"]
[Result "1-0"]
[Round "5"]
[TimeControl "180+1"]
[Date "2023.11.07"]
[WhiteClock "0:00:04"]
[BlackClock "0:00:22"]
[Board "8"]

1. Nf3 {[%clk 0:02:59]}  Nf6 {[%clk 0:02:59]} 2. g3 {[%clk 0:03:00]}  c6 {[%clk 0:02:57]} 3. Bg2 {[%clk 0:02:59]}  d5 {[%clk 0:02:58]} 4. O-O {[%clk 0:03:00]}  Bf5 {[%clk 0:02:58]} 5. d3 {[%clk 0:03:00]}  e6 {[%clk 0:02:58]} 6. c4 {[%clk 0:03:01]}  Nbd7 {[%clk 0:02:58]} 7. Qb3 {[%clk 0:02:57]}  Nc5 {[%clk 0:02:57]} 8. Qc2 {[%clk 0:02:56]}  h6 {[%clk 0:02:57]} 9. b3 {[%clk 0:02:56]}  Be7 {[%clk 0:02:57]} 10. Bb2 {[%clk 0:02:56]}  O-O {[%clk 0:02:57]} 11. Nbd2 {[%clk 0:02:56]}  Nfd7 {[%clk 0:02:39]} 12. b4 {[%clk 0:02:49]}  Na6 {[%clk 0:02:37]} 13. a3 {[%clk 0:02:49]}  Bh7 {[%clk 0:02:33]} 14. Rac1 {[%clk 0:02:44]}  c5 {[%clk 0:02:32]} 15. b5 {[%clk 0:02:41]}  Nc7 {[%clk 0:02:32]} 16. a4 {[%clk 0:02:41]}  b6 {[%clk 0:02:29]} 17. Rfd1 {[%clk 0:02:18]}  d4 {[%clk 0:02:29]} 18. a5 {[%clk 0:02:18]}  e5 {[%clk 0:02:28]} 19. Ra1 {[%clk 0:02:16]}  Rb8 {[%clk 0:02:22]} 20. axb6 {[%clk 0:02:14]}  axb6 {[%clk 0:02:23]} 21. Ra7 {[%clk 0:02:14]}  f5 {[%clk 0:02:20]} 22. Rda1 {[%clk 0:02:11]}  Bd6 {[%clk 0:02:19]} 23. e3 {[%clk 0:02:06]}  Kh8 {[%clk 0:02:12]} 24. exd4 {[%clk 0:02:04]}  exd4 {[%clk 0:02:12]} 25. Nb3 {[%clk 0:01:59]}  f4 {[%clk 0:02:10]} 26. Re1 {[%clk 0:01:36]}  fxg3 {[%clk 0:02:09]} 27. hxg3 {[%clk 0:01:36]}  Qf6 {[%clk 0:02:07]} 28. Re2 {[%clk 0:01:21]}  Rbe8 {[%clk 0:01:57]} 29. Qd1 {[%clk 0:01:18]}  Bf5 {[%clk 0:01:49]} 30. Rxe8 {[%clk 0:01:04]}  Rxe8 {[%clk 0:01:50]} 31. Nh4 {[%clk 0:01:00]}  Bh7 {[%clk 0:01:42]} 32. Bc6 {[%clk 0:00:59]}  Rf8 {[%clk 0:01:39]} 33. Qf3 {[%clk 0:00:40]}  Qe6 {[%clk 0:01:39]} 34. Qd1 {[%clk 0:00:34]}  Ne5 {[%clk 0:01:36]} 35. Nc1 {[%clk 0:00:23]}  Nxc6 {[%clk 0:01:23]} 36. bxc6 {[%clk 0:00:23]}  Bxg3 {[%clk 0:01:19]} 37. fxg3 {[%clk 0:00:19]}  Qe3+ {[%clk 0:01:19]} 38. Kh2 {[%clk 0:00:19]}  Rf2+ {[%clk 0:01:17]} 39. Ng2 {[%clk 0:00:20]}  Rxb2 {[%clk 0:00:44]} 40. Rxc7 {[%clk 0:00:20]}  Qf2 {[%clk 0:00:44]} 41. Qg1 {[%clk 0:00:19]}  Qf3 {[%clk 0:00:43]} 42. Rc8+ {[%clk 0:00:04]}  Bg8 {[%clk 0:00:43]} 43. Qh1 {[%clk 0:00:05]}  Kh7 {[%clk 0:00:42]} 44. c7 {[%clk 0:00:03]}  Be6 {[%clk 0:00:41]} 45. Re8 {[%clk 0:00:03]}  Rd2 {[%clk 0:00:35]} 46. Rxe6 {[%clk 0:00:02]}  Qh5+ {[%clk 0:00:24]} 47. Kg1 {[%clk 0:00:02]}  Qd1+ {[%clk 0:00:24]} 48. Re1 {[%clk 0:00:03]}  Rxg2+ {[%clk 0:00:22]} 49. Kxg2 {[%clk 0:00:04]} 1-0


[Site "https://www.chess.com"]

[Event "Titled Tuesday Blitz November 07 Early 2023"]
[White "Lobanov, Sergei"]
[Black "Xiong, Jeffery"]
[WhiteFideId "24183750"]
[BlackFideId "2047640"]
[WhiteElo "2822"]
[BlackElo "3009"]
[Result "1/2-1/2"]
[Round "5"]
[TimeControl "180+1"]
[Date "2023.11.07"]
[WhiteClock "0:00:45"]
[BlackClock "0:01:11"]
[Board "14"]

1. d4 {[%clk 0:03:00]}  Nf6 {[%clk 0:02:59]} 2. c4 {[%clk 0:03:01]}  g6 {[%clk 0:03:00]} 3. Nc3 {[%clk 0:03:02]}  d5 {[%clk 0:03:00]} 4. cxd5 {[%clk 0:03:02]}  Nxd5 {[%clk 0:03:00]} 5. e4 {[%clk 0:03:03]}  Nxc3 {[%clk 0:03:01]} 6. bxc3 {[%clk 0:03:03]}  Bg7 {[%clk 0:03:01]} 7. Nf3 {[%clk 0:03:03]}  c5 {[%clk 0:03:02]} 8. Bb5+ {[%clk 0:03:03]}  Nc6 {[%clk 0:03:01]} 9. Bxc6+ {[%clk 0:03:01]}  bxc6 {[%clk 0:03:01]} 10. O-O {[%clk 0:03:02]}  O-O {[%clk 0:03:02]} 11. Qc2 {[%clk 0:03:03]}  cxd4 {[%clk 0:02:58]} 12. cxd4 {[%clk 0:03:03]}  Bg4 {[%clk 0:02:38]} 13. Ne5 {[%clk 0:03:02]}  Qxd4 {[%clk 0:02:39]} 14. Bb2 {[%clk 0:03:02]}  Qb6 {[%clk 0:02:30]} 15. Rab1 {[%clk 0:02:59]}  Bxe5 {[%clk 0:02:21]} 16. Bxe5 {[%clk 0:02:58]}  Qa5 {[%clk 0:02:17]} 17. Bf4 {[%clk 0:02:44]}  Be6 {[%clk 0:02:06]} 18. a4 {[%clk 0:02:31]}  Rfd8 {[%clk 0:02:00]} 19. Rb7 {[%clk 0:02:04]}  Rd7 {[%clk 0:01:51]} 20. Rxd7 {[%clk 0:02:03]}  Bxd7 {[%clk 0:01:52]} 21. Rd1 {[%clk 0:02:03]}  Be6 {[%clk 0:01:46]} 22. h3 {[%clk 0:01:51]}  Rd8 {[%clk 0:01:46]} 23. Rb1 {[%clk 0:01:41]}  c5 {[%clk 0:01:41]} 24. Rb7 {[%clk 0:01:31]}  Rd7 {[%clk 0:01:16]} 25. Rb8+ {[%clk 0:01:20]}  Rd8 {[%clk 0:01:11]} 26. Rb7 {[%clk 0:01:13]}  Rd7 {[%clk 0:01:11]} 27. Rb8+ {[%clk 0:00:45]}  Rd8 {[%clk 0:01:11]} 28. Rb7 {[%clk 0:00:45]} 1/2-1/2


[Site "https://www.chess.com"]

[Event "Titled Tuesday Blitz November 07 Early 2023"]
[White "Boros, Denes"]
[Black "Kozak, Antoni"]
[WhiteFideId "722340"]
[BlackFideId "21832030"]
[WhiteElo "2947"]
[BlackElo "2799"]
[Result "0-1"]
[Round "5"]
[TimeControl "180+1"]
[Date "2023.11.07"]
[WhiteClock "0:00:00"]
[BlackClock "0:00:04"]
[Board "15"]

1. d4 {[%clk 0:03:00]}  Nf6 {[%clk 0:02:53]} 2. Nc3 {[%clk 0:03:00]}  d5 {[%clk 0:02:52]} 3. Bg5 {[%clk 0:03:00]}  c6 {[%clk 0:02:49]} 4. Qd3 {[%clk 0:02:59]}  Bg4 {[%clk 0:02:44]} 5. Nf3 {[%clk 0:02:50]}  e6 {[%clk 0:02:42]} 6. e4 {[%clk 0:02:47]}  h6 {[%clk 0:02:36]} 7. Bxf6 {[%clk 0:02:39]}  gxf6 {[%clk 0:02:36]} 8. Nd2 {[%clk 0:02:34]}  Bh5 {[%clk 0:02:32]} 9. Qh3 {[%clk 0:02:24]}  Bg6 {[%clk 0:02:31]} 10. Bd3 {[%clk 0:02:24]}  Bb4 {[%clk 0:02:16]} 11. a3 {[%clk 0:02:15]}  Ba5 {[%clk 0:02:09]} 12. O-O {[%clk 0:02:08]}  dxe4 {[%clk 0:02:01]} 13. Ndxe4 {[%clk 0:02:07]}  f5 {[%clk 0:01:43]} 14. Nc5 {[%clk 0:02:04]}  Qxd4 {[%clk 0:01:22]} 15. Nb3 {[%clk 0:01:44]}  Qb6 {[%clk 0:01:01]} 16. Ne2 {[%clk 0:01:23]}  Qc7 {[%clk 0:00:41]} 17. Qh4 {[%clk 0:01:02]}  Qd8 {[%clk 0:00:21]} 18. Qc4 {[%clk 0:00:50]}  Bc7 {[%clk 0:00:20]} 19. Rad1 {[%clk 0:00:39]}  Nd7 {[%clk 0:00:20]} 20. Nf4 {[%clk 0:00:37]}  Bxf4 {[%clk 0:00:19]} 21. Qxf4 {[%clk 0:00:38]}  Qg5 {[%clk 0:00:17]} 22. Qc7 {[%clk 0:00:37]}  Nf6 {[%clk 0:00:15]} 23. Qe5 {[%clk 0:00:26]}  O-O {[%clk 0:00:10]} 24. h3 {[%clk 0:00:26]}  Nh5 {[%clk 0:00:09]} 25. f4 {[%clk 0:00:24]}  Qf6 {[%clk 0:00:08]} 26. Qe3 {[%clk 0:00:23]}  Ng7 {[%clk 0:00:07]} 27. Nc5 {[%clk 0:00:22]}  Qe7 {[%clk 0:00:05]} 28. b4 {[%clk 0:00:22]}  b6 {[%clk 0:00:05]} 29. Nb3 {[%clk 0:00:22]}  Rfd8 {[%clk 0:00:06]} 30. Nd4 {[%clk 0:00:22]}  Qc7 {[%clk 0:00:05]} 31. Nf3 {[%clk 0:00:22]}  Rd5 {[%clk 0:00:04]} 32. c4 {[%clk 0:00:19]}  Rdd8 {[%clk 0:00:04]} 33. Ne5 {[%clk 0:00:19]}  c5 {[%clk 0:00:04]} 34. b5 {[%clk 0:00:19]}  Qe7 {[%clk 0:00:03]} 35. Nc6 {[%clk 0:00:19]}  Qf6 {[%clk 0:00:04]} 36. Nxd8 {[%clk 0:00:19]}  Rxd8 {[%clk 0:00:04]} 37. Be2 {[%clk 0:00:20]}  Rd4 {[%clk 0:00:03]} 38. Qe5 {[%clk 0:00:20]}  Qxe5 {[%clk 0:00:03]} 39. fxe5 {[%clk 0:00:21]}  Re4 {[%clk 0:00:04]} 40. Bd3 {[%clk 0:00:21]}  Rxe5 {[%clk 0:00:04]} 41. Kf2 {[%clk 0:00:21]}  Ne8 {[%clk 0:00:03]} 42. Kf3 {[%clk 0:00:21]}  Kf8 {[%clk 0:00:04]} 43. a4 {[%clk 0:00:21]}  Ke7 {[%clk 0:00:03]} 44. a5 {[%clk 0:00:22]}  Nd6 {[%clk 0:00:03]} 45. axb6 {[%clk 0:00:21]}  axb6 {[%clk 0:00:03]} 46. Rfe1 {[%clk 0:00:22]}  Rxe1 {[%clk 0:00:03]} 47. Rxe1 {[%clk 0:00:23]}  f6 {[%clk 0:00:02]} 48. Ra1 {[%clk 0:00:24]}  e5 {[%clk 0:00:03]} 49. Kf2 {[%clk 0:00:23]}  e4 {[%clk 0:00:03]} 50. Bf1 {[%clk 0:00:24]}  Bf7 {[%clk 0:00:03]} 51. Ra7+ {[%clk 0:00:22]}  Ke8 {[%clk 0:00:04]} 52. Ra4 {[%clk 0:00:22]}  Ke7 {[%clk 0:00:03]} 53. g3 {[%clk 0:00:22]}  Ke6 {[%clk 0:00:04]} 54. Ke3 {[%clk 0:00:22]}  Ke5 {[%clk 0:00:04]} 55. Be2 {[%clk 0:00:23]}  Be6 {[%clk 0:00:04]} 56. h4 {[%clk 0:00:22]}  Bf7 {[%clk 0:00:05]} 57. Bf1 {[%clk 0:00:22]}  Be6 {[%clk 0:00:05]} 58. Be2 {[%clk 0:00:21]}  Bf7 {[%clk 0:00:06]} 59. Ra6 {[%clk 0:00:21]}  Bxc4 {[%clk 0:00:05]} 60. Rxb6 {[%clk 0:00:22]}  Bxe2 {[%clk 0:00:06]} 61. Kxe2 {[%clk 0:00:23]}  Kd5 {[%clk 0:00:03]} 62. Rb8 {[%clk 0:00:22]}  c4 {[%clk 0:00:03]} 63. Ke3 {[%clk 0:00:21]}  Kc5 {[%clk 0:00:03]} 64. Rf8 {[%clk 0:00:20]}  c3 {[%clk 0:00:02]} 65. b6 {[%clk 0:00:20]}  Kxb6 {[%clk 0:00:02]} 66. Rxf6 {[%clk 0:00:19]}  Kc5 {[%clk 0:00:03]} 67. Rxh6 {[%clk 0:00:19]}  Nc4+ {[%clk 0:00:03]} 68. Ke2 {[%clk 0:00:00]}  c2 {[%clk 0:00:04]} 0-1


[Site "https://www.chess.com"]